{"text_format":"3","workbook":"xlsx","n_sheets":2,"sheets":["Popis opreme","Postavke"],"not_rendered":{"defined_names":4},"read":"whole","date_system":"1900"}

{"sheet":"Popis opreme","index":0,"n_rows":35,"n_cols":6,"rows_kept":35,"merged":[[0,1,2,2],[0,4,0,5]]}
[]
[{"$nulls":4},"Označi predmete starije od:"]
[{"$nulls":4},4]
[]
[null,"ID OPREME","NAZIV PREDMETA","KOME JE DODIJELJENO","DATUM IZDAVANJA","STAROST PREDMETA"]
[null,"PREDMET0001","stolac","Zaposlenik 1",{"$f":"TODAY()-25","v":"2012-12-13"},{"$f":"IF(tblPopisOpreme[[#This Row],[DATUM IZDAVANJA]]<>\"\",TODAY()-tblPopisOpreme[[#This Row],[DATUM IZDAVANJA]],\"\")","v":{"v":25,"d":"25 dana"}}]
[null,"PREDMET0002","laserski pisač","Zaposlenik 2",{"$f":"TODAY()-479","v":"2011-09-16"},{"$f":"IF(tblPopisOpreme[[#This Row],[DATUM IZDAVANJA]]<>\"\",TODAY()-tblPopisOpreme[[#This Row],[DATUM IZDAVANJA]],\"\")","v":{"v":479,"d":"479 dana"}}]
[null,"PREDMET0003","skener","Zaposlenik 3",{"$f":"TODAY()-177","v":"2012-07-14"},{"$f":"IF(tblPopisOpreme[[#This Row],[DATUM IZDAVANJA]]<>\"\",TODAY()-tblPopisOpreme[[#This Row],[DATUM IZDAVANJA]],\"\")","v":{"v":177,"d":"177 dana"}}]
[null,"PREDMET0004","laserski pisač","Zaposlenik 7",{"$f":"TODAY()-18","v":"2012-12-20"},{"$f":"IF(tblPopisOpreme[[#This Row],[DATUM IZDAVANJA]]<>\"\",TODAY()-tblPopisOpreme[[#This Row],[DATUM IZDAVANJA]],\"\")","v":{"v":18,"d":"18 dana"}}]
[null,"PREDMET0005","aparat za kavu","Zaposlenik 20",{"$f":"TODAY()-227","v":"2012-05-25"},{"$f":"IF(tblPopisOpreme[[#This Row],[DATUM IZDAVANJA]]<>\"\",TODAY()-tblPopisOpreme[[#This Row],[DATUM IZDAVANJA]],\"\")","v":{"v":227,"d":"227 dana"}}]
[null,"PREDMET0006","skener","Zaposlenik 14",{"$f":"TODAY()-50","v":"2012-11-18"},{"$f":"IF(tblPopisOpreme[[#This Row],[DATUM IZDAVANJA]]<>\"\",TODAY()-tblPopisOpreme[[#This Row],[DATUM IZDAVANJA]],\"\")","v":{"v":50,"d":"50 dana"}}]
[null,"PREDMET0007","stol","Zaposlenik 4",{"$f":"TODAY()-120","v":"2012-09-09"},{"$f":"IF(tblPopisOpreme[[#This Row],[DATUM IZDAVANJA]]<>\"\",TODAY()-tblPopisOpreme[[#This Row],[DATUM IZDAVANJA]],\"\")","v":{"v":120,"d":"120 dana"}}]
[null,"PREDMET0008","fotokopirni aparat","Zaposlenik 12",{"$f":"TODAY()-499","v":"2011-08-27"},{"$f":"IF(tblPopisOpreme[[#This Row],[DATUM IZDAVANJA]]<>\"\",TODAY()-tblPopisOpreme[[#This Row],[DATUM IZDAVANJA]],\"\")","v":{"v":499,"d":"499 dana"}}]
[null,"PREDMET0009","dodatni monitor","Zaposlenik 8",{"$f":"TODAY()-30","v":"2012-12-08"},{"$f":"IF(tblPopisOpreme[[#This Row],[DATUM IZDAVANJA]]<>\"\",TODAY()-tblPopisOpreme[[#This Row],[DATUM IZDAVANJA]],\"\")","v":{"v":30,"d":"30 dana"}}]
[null,"PREDMET0010","ploča za pisanje","Zaposlenik 19",{"$f":"TODAY()-50","v":"2012-11-18"},{"$f":"IF(tblPopisOpreme[[#This Row],[DATUM IZDAVANJA]]<>\"\",TODAY()-tblPopisOpreme[[#This Row],[DATUM IZDAVANJA]],\"\")","v":{"v":50,"d":"50 dana"}}]
[null,"PREDMET0011","fotokopirni aparat","Zaposlenik 12",{"$f":"TODAY()-450","v":"2011-10-15"},{"$f":"IF(tblPopisOpreme[[#This Row],[DATUM IZDAVANJA]]<>\"\",TODAY()-tblPopisOpreme[[#This Row],[DATUM IZDAVANJA]],\"\")","v":{"v":450,"d":"450 dana"}}]
[null,"PREDMET0012","tiskanica","Zaposlenik 18",{"$f":"TODAY()-420","v":"2011-11-14"},{"$f":"IF(tblPopisOpreme[[#This Row],[DATUM IZDAVANJA]]<>\"\",TODAY()-tblPopisOpreme[[#This Row],[DATUM IZDAVANJA]],\"\")","v":{"v":420,"d":"420 dana"}}]
[null,"PREDMET0013","dodatni monitor","Zaposlenik 8",{"$f":"TODAY()-250","v":"2012-05-02"},{"$f":"IF(tblPopisOpreme[[#This Row],[DATUM IZDAVANJA]]<>\"\",TODAY()-tblPopisOpreme[[#This Row],[DATUM IZDAVANJA]],\"\")","v":{"v":250,"d":"250 dana"}}]
[null,"PREDMET0014","aparat za kavu","Zaposlenik 9",{"$f":"TODAY()-45","v":"2012-11-23"},{"$f":"IF(tblPopisOpreme[[#This Row],[DATUM IZDAVANJA]]<>\"\",TODAY()-tblPopisOpreme[[#This Row],[DATUM IZDAVANJA]],\"\")","v":{"v":45,"d":"45 dana"}}]
[null,"PREDMET0015","tiskanica","Zaposlenik 13",{"$f":"TODAY()-502","v":"2011-08-24"},{"$f":"IF(tblPopisOpreme[[#This Row],[DATUM IZDAVANJA]]<>\"\",TODAY()-tblPopisOpreme[[#This Row],[DATUM IZDAVANJA]],\"\")","v":{"v":502,"d":"502 dana"}}]
[null,"PREDMET0016","skener","Zaposlenik 1",{"$f":"TODAY()-350","v":"2012-01-23"},{"$f":"IF(tblPopisOpreme[[#This Row],[DATUM IZDAVANJA]]<>\"\",TODAY()-tblPopisOpreme[[#This Row],[DATUM IZDAVANJA]],\"\")","v":{"v":350,"d":"350 dana"}}]
[null,"PREDMET0017","fotokopirni aparat","Zaposlenik 19",{"$f":"TODAY()-125","v":"2012-09-04"},{"$f":"IF(tblPopisOpreme[[#This Row],[DATUM IZDAVANJA]]<>\"\",TODAY()-tblPopisOpreme[[#This Row],[DATUM IZDAVANJA]],\"\")","v":{"v":125,"d":"125 dana"}}]
[null,"PREDMET0018","ploča za pisanje","Zaposlenik 15",{"$f":"TODAY()-90","v":"2012-10-09"},{"$f":"IF(tblPopisOpreme[[#This Row],[DATUM IZDAVANJA]]<>\"\",TODAY()-tblPopisOpreme[[#This Row],[DATUM IZDAVANJA]],\"\")","v":{"v":90,"d":"90 dana"}}]
[null,"PREDMET0019","stolac","Zaposlenik 16",{"$f":"TODAY()-730","v":"2011-01-08"},{"$f":"IF(tblPopisOpreme[[#This Row],[DATUM IZDAVANJA]]<>\"\",TODAY()-tblPopisOpreme[[#This Row],[DATUM IZDAVANJA]],\"\")","v":{"v":730,"d":"730 dana"}}]
[null,"PREDMET0020","krpa za prašinu (1 komplet)","Zaposlenik 3",{"$f":"TODAY()-540","v":"2011-07-17"},{"$f":"IF(tblPopisOpreme[[#This Row],[DATUM IZDAVANJA]]<>\"\",TODAY()-tblPopisOpreme[[#This Row],[DATUM IZDAVANJA]],\"\")","v":{"v":540,"d":"540 dana"}}]
[null,"PREDMET0021","laserski pisač","Zaposlenik 7",{"$f":"TODAY()-18","v":"2012-12-20"},{"$f":"IF(tblPopisOpreme[[#This Row],[DATUM IZDAVANJA]]<>\"\",TODAY()-tblPopisOpreme[[#This Row],[DATUM IZDAVANJA]],\"\")","v":{"v":18,"d":"18 dana"}}]
[null,"PREDMET0022","prijenosno računalo","Zaposlenik 8",{"$f":"TODAY()-283","v":"2012-03-30"},{"$f":"IF(tblPopisOpreme[[#This Row],[DATUM IZDAVANJA]]<>\"\",TODAY()-tblPopisOpreme[[#This Row],[DATUM IZDAVANJA]],\"\")","v":{"v":283,"d":"283 dana"}}]
[null,"PREDMET0023","tiskanica","Zaposlenik 9",{"$f":"TODAY()-479","v":"2011-09-16"},{"$f":"IF(tblPopisOpreme[[#This Row],[DATUM IZDAVANJA]]<>\"\",TODAY()-tblPopisOpreme[[#This Row],[DATUM IZDAVANJA]],\"\")","v":{"v":479,"d":"479 dana"}}]
[null,"PREDMET0024","laserski pisač","Zaposlenik 19",{"$f":"TODAY()-355","v":"2012-01-18"},{"$f":"IF(tblPopisOpreme[[#This Row],[DATUM IZDAVANJA]]<>\"\",TODAY()-tblPopisOpreme[[#This Row],[DATUM IZDAVANJA]],\"\")","v":{"v":355,"d":"355 dana"}}]
[null,"PREDMET0025","stol","Zaposlenik 7",{"$f":"TODAY()-28","v":"2012-12-10"},{"$f":"IF(tblPopisOpreme[[#This Row],[DATUM IZDAVANJA]]<>\"\",TODAY()-tblPopisOpreme[[#This Row],[DATUM IZDAVANJA]],\"\")","v":{"v":28,"d":"28 dana"}}]
[null,"PREDMET0026","ploča za pisanje","Zaposlenik 8",{"$f":"TODAY()-28","v":"2012-12-10"},{"$f":"IF(tblPopisOpreme[[#This Row],[DATUM IZDAVANJA]]<>\"\",TODAY()-tblPopisOpreme[[#This Row],[DATUM IZDAVANJA]],\"\")","v":{"v":28,"d":"28 dana"}}]
[null,"PREDMET0027","prijenosno računalo","Zaposlenik 19",{"$f":"TODAY()-736","v":"2011-01-02"},{"$f":"IF(tblPopisOpreme[[#This Row],[DATUM IZDAVANJA]]<>\"\",TODAY()-tblPopisOpreme[[#This Row],[DATUM IZDAVANJA]],\"\")","v":{"v":736,"d":"736 dana"}}]
[null,"PREDMET0028","stol","Zaposlenik 12",{"$f":"TODAY()-68","v":"2012-10-31"},{"$f":"IF(tblPopisOpreme[[#This Row],[DATUM IZDAVANJA]]<>\"\",TODAY()-tblPopisOpreme[[#This Row],[DATUM IZDAVANJA]],\"\")","v":{"v":68,"d":"68 dana"}}]
[null,"PREDMET0029","skener","Zaposlenik 14",{"$f":"TODAY()-67","v":"2012-11-01"},{"$f":"IF(tblPopisOpreme[[#This Row],[DATUM IZDAVANJA]]<>\"\",TODAY()-tblPopisOpreme[[#This Row],[DATUM IZDAVANJA]],\"\")","v":{"v":67,"d":"67 dana"}}]
[null,"PREDMET0030","aparat za kavu","Zaposlenik 3",{"$f":"TODAY()-149","v":"2012-08-11"},{"$f":"IF(tblPopisOpreme[[#This Row],[DATUM IZDAVANJA]]<>\"\",TODAY()-tblPopisOpreme[[#This Row],[DATUM IZDAVANJA]],\"\")","v":{"v":149,"d":"149 dana"}}]

{"sheet":"Postavke","index":1,"n_rows":23,"n_cols":4,"rows_kept":23}
[]
[]
[null,"ZAPOSLENICI",null,"PREDMETI"]
[null,"Zaposlenik 1",null,"stolac"]
[null,"Zaposlenik 2",null,"aparat za kavu"]
[null,"Zaposlenik 3",null,"fotokopirni aparat"]
[null,"Zaposlenik 4",null,"stolno računalo"]
[null,"Zaposlenik 5",null,"krpa za prašinu (1 komplet)"]
[null,"Zaposlenik 6",null,"dodatni monitor"]
[null,"Zaposlenik 7",null,"tintni pisač"]
[null,"Zaposlenik 8",null,"prijenosno računalo"]
[null,"Zaposlenik 9",null,"laserski pisač"]
[null,"Zaposlenik 10",null,"markeri (3 paketa)"]
[null,"Zaposlenik 11",null,"skener"]
[null,"Zaposlenik 12",null,"tiskanica"]
[null,"Zaposlenik 13",null,"stol"]
[null,"Zaposlenik 14",null,"USB pogon"]
[null,"Zaposlenik 15",null,"ploča za pisanje"]
[null,"Zaposlenik 16"]
[null,"Zaposlenik 17"]
[null,"Zaposlenik 18"]
[null,"Zaposlenik 19"]
[null,"Zaposlenik 20"]